[Event "4NCL 2nd Div 2023-24"]
[Site "Daventry"]
[Date "2024.05.06"]
[Round "11.4"]
[White "Sivanandan, Bodhana"]
[Black "Thorarinsson, Pall A."]
[Result "1/2-1/2"]
[ECO "B40"]
[WhiteElo "2065"]
[BlackElo "2160"]
[Annotator "RC"]
[PlyCount "167"]
[EventDate "2023.11.11"]
[EventType "team-tourn"]
[EventCountry "ENG"]
[SourceTitle "playchess.com"]
[Source "ChessBase"]
[SourceQuality "1"]
[TimeControl "40/6000+30:3000+30"]

1. e4 {[%emt 0:00:02]} c5 {[%emt 0:03:41]} 2. Nf3 {[%emt 0:01:13]} e6 {[%emt 0:01:03]} 3. g3 {[%emt 0:01:38]} a6 {[%emt 0:05:30]} 4. Bg2 {[%emt 0:02:16]} b5 {[%emt 0:01:11]} 5. O-O {[%emt 0:02:26]} Bb7 {[%emt 0:00:31]} 6. Re1 {[%emt 0:03:33]} Nf6 {[%emt 0:02:34]} 7. e5 {[%emt 0:08:20]} Nd5 {[%emt 0:01:18]} 8. d3 {[%emt 0:01:13]} d6 {[%emt 0:04:00]} 9. Nc3 {[%emt 0:13:39]} Nxc3 {[%emt 0:09:57]} 10. bxc3 {[%emt 0:00:15]} Nd7 {[%emt 0:09:10]} 11. Bf4 {[%emt 0:10:26]} dxe5 {[%emt 0:09:20]} 12. Nxe5 {[%emt 0:02:12]} Bxg2 {[%emt 0:00:57]} 13. Kxg2 {[%emt 0:00:22]} Nxe5 {[%emt 0:00:20]} 14. Bxe5 {[%emt 0:01:36]} Qd5+ {[%emt 0:00:55]} 15. Qf3 {[%emt 0:07:00]} Qxf3+ {[%emt 0:00:39]} 16. Kxf3 {[%emt 0:00:14]} Kd7 {[%emt 0:01:16]} 17. Rab1 {[%emt 0:12:52]} f6 {[%emt 0:03:02]} 18. Bf4 {[%emt 0:00:44]} g5 {[%emt 0:04:44]} 19. Be3 {[%emt 0:03:43]} Bd6 {[%emt 0:00:53]} 20. Red1 {[%emt 0:01:49]} h5 {[%emt 0:05:44]} 21. h3 {[%emt 0:07:39]} Rag8 {[%emt 0:05:25]} 22. a4 {[%emt 0:08:45]} g4+ {[%emt 0:00:58]} 23. hxg4 {[%emt 0:00:12]} hxg4+ {[%emt 0:00:02]} 24. Kg2 {[%emt 0:01:12]} Kc6 {[%emt 0:01:41]} 25. axb5+ {[%emt 0:07:19]} axb5 {[%emt 0:00:03]} 26. Ra1 {[%emt 0:00:40]} Ra8 {[%emt 0:38:36]} 27. Rh1 {[%emt 0:03:29]} Rxa1 {[%emt 0:00:00]} 28. Rxa1 {[%emt 0:00:17]} Kb7 {[%emt 0:00:00]} 29. c4 {[%emt 0:05:06]} bxc4 {[%emt 0:00:00]} 30. dxc4 {[%emt 0:00:11]} f5 {[%emt 0:00:00]} 31. Rd1 {[%emt 0:01:46]} Kc6 {[%emt 0:00:00]} 32. Ra1 {[%emt 0:00:27]} Rb8 {[%emt 0:00:00]} 33. Ra6+ {[%emt 0:02:31]} Rb6 {[%emt 0:00:00]} 34. Rxb6+ {[%emt 0:00:05]} Kxb6 {[%emt 0:00:00]} 35. Bd2 {[%emt 0:00:10]} e5 {[%emt 0:00:00]} 36. Kf1 {[%emt 0:00:54]} Kc6 {[%emt 0:00:00]} 37. Ke2 {[%emt 0:00:11]} Kd7 {[%emt 0:00:00]} 38. Ke3 {[%emt 0:01:10]} Ke6 {[%emt 0:00:00]} 39. Bc3 {[%emt 0:00:20]} Be7 {[%emt 0:00:00]} 40. Bb2 {[%emt 0:01:38]} Bg5+ {[%emt 0:00:00]} 41. Kd3 {[%emt 0:06:24]} Kd6 {[%emt 0:00:49]} 42. Ke2 {[%emt 0:08:43]} Ke6 {[%emt 0:02:23]} 43. Kd3 {[%emt 0:00:30]} Be7 {[%emt 0:03:44]} 44. Ke3 {[%emt 0:01:42]} Bd6 {[%emt 0:01:02]} 45. Kd3 {[%emt 0:00:56]} Bc7 {[%emt 0:03:43]} 46. Bc3 {[%emt 0:02:10]} Bb6 {[%emt 0:07:49]} 47. Ke3 {[%emt 0:04:07]} Bd8 {[%emt 0:01:20]} 48. Kd3 {[%emt 0:01:17]} Bg5 {[%emt 0:01:31]} 49. Bb2 {[%emt 0:00:25]} Bh6 {[%emt 0:06:28]} 50. Ba3 {[%emt 0:02:52]} Kd6 {[%emt 0:01:38]} 51. Bb2 {[%emt 0:00:35]} Bg5 {[%emt 0:01:03]} 52. Ke2 {[%emt 0:03:31]} Bf6 {[%emt 0:02:43]} 53. Ke3 {[%emt 0:00:21]} Ke6 {[%emt 0:00:32]} 54. Ba3 {[%emt 0:00:26]} Kd6 {[%emt 0:00:42]} 55. Bb2 {[%emt 0:04:28]} Bg7 {[%emt 0:00:49]} 56. Ke2 {[%emt 0:00:47]} Bh6 {[%emt 0:00:20]} 57. Kd3 {[%emt 0:00:33]} Bg5 {[%emt 0:02:59]} 58. Ke2 {[%emt 0:03:21]} Bh6 {[%emt 0:02:18]} 59. Kd3 {[%emt 0:00:24]} e4+ {[%emt 0:01:51]} 60. Ke2 {[%emt 0:00:16]} Ke6 {[%emt 0:00:39]} 61. Ba3 {[%emt 0:00:40]} Kd6 {[%emt 0:00:51]} 62. Bb2 {[%emt 0:01:06]} Bg5 {[%emt 0:00:53]} 63. Bc3 {[%emt 0:02:44]} Ke6 {[%emt 0:00:58]} 64. Bb2 {[%emt 0:00:21]} f4 {[%emt 0:02:44]} 65. gxf4 {[%emt 0:00:37]} Bxf4 {[%emt 0:00:08]} 66. Ba3 {[%emt 0:00:31]} Bd6 {[%emt 0:04:06]} 67. Ke3 {[%emt 0:02:12]} Kf5 {[%emt 0:00:37]} 68. Ke2 {[%emt 0:00:23]} Be7 {[%emt 0:01:16]} 69. Ke3 {[%emt 0:00:16]} Bd6 {[%emt 0:00:32]} 70. Ke2 {[%emt 0:00:07]} Kf4 {[%emt 0:01:03]} 71. Bc1+ {[%emt 0:00:08]} Kf5 {[%emt 0:00:19]} 72. Ba3 {[%emt 0:00:10]} Be7 {[%emt 0:00:56]} 73. Ke3 {[%emt 0:00:23]} Bg5+ {[%emt 0:00:08]} 74. Ke2 {[%emt 0:00:13]} Be7 {[%emt 0:00:51]} 75. Ke3 {[%emt 0:00:07]} Bd6 {[%emt 0:00:20]} 76. Ke2 {[%emt 0:00:06]} Ke6 {[%emt 0:00:22]} 77. Ke3 {[%emt 0:00:05]} Kf5 {[%emt 0:00:06]} 78. Ke2 {[%emt 0:00:07]} Be7 {[%emt 0:00:16]} 79. Ke3 {[%emt 0:00:07]} Bg5+ {[%emt 0:00:06]} 80. Ke2 {[%emt 0:00:09]} Be7 {[%emt 0:00:05]} 81. Ke3 {[%emt 0:00:08]} Bg5+ {[%emt 0:00:09]} 82. Ke2 {[%emt 0:00:06]} Be7 {[%emt 0:00:04]} 83. Ke3 {[%emt 0:00:05]} Bg5+ {[%emt 0:00:10]} 84. Ke2 {[%emt 0:00:09]} 1/2-1/2

[Event "4NCL 2nd Div 2023-24"]
[Site "Daventry"]
[Date "2024.05.06"]
[Round "11.5"]
[White "Freeman, Gordon"]
[Black "Alldritt, Nigel R E"]
[Result "1-0"]
[ECO "D78"]
[WhiteElo "2062"]
[BlackElo "1983"]
[Annotator "NA RC"]
[PlyCount "94"]
[EventDate "2023.11.11"]
[EventType "team-tourn"]
[EventCountry "ENG"]
[SourceTitle "playchess.com"]
[Source "ChessBase"]
[SourceQuality "1"]
[TimeControl "40/6000+30:3000+30"]

1. d4 {[%emt 0:00:03]} Nf6 {[%emt 0:00:06]} 2. Nf3 {[%emt 0:00:05]} g6 {[%emt 0:00:05]} 3. g3 {[%emt 0:00:05]} Bg7 {[%emt 0:00:13]} 4. Bg2 {[%emt 0:00:04]} O-O {[%emt 0:00:37]} 5. O-O {[%emt 0:00:04]} d5 {[%emt 0:00:24]} 6. c4 {[%emt 0:00:05]} c6 {[%emt 0:00:32]} 7. Qb3 {[%emt 0:00:10]} Qb6 {[%emt 0:00:13]} 8. Nc3 {[%emt 0:03:01]} Bf5 {[%emt 0:31:21]} 9. Qxb6 {[%emt 0:08:11]} axb6 {[%emt 0:01:03]} 10. cxd5 {[%emt 0:00:25]} cxd5 {[%emt 0:00:20]} 11. Bf4 {[%emt 0:06:33]} Nc6 {[%emt 0:08:19]} 12. Rfd1 {[%emt 0:13:53]} Rfc8 {[%emt 0:10:16]} 13. Ne5 {[%emt 0:20:23]} Be6 {[%emt 0:10:23]} 14. e3 {[%emt 0:04:02]} h6 $14 {[%emt 0:04:34]} 15. h4 {[%emt 0:05:52]} Kf8 {[%emt 0:08:56]} 16. Nd3 {[%emt 0:05:48]} Bg4 {[%emt 0:14:10]} 17. f3 {[%emt 0:05:14]} Be6 {[%emt 0:03:44]} 18. g4 {[%emt 0:02:14]} Ne8 {[%emt 0:01:52]} 19. Rdc1 {[%emt 0:15:43]} f6 {[%emt 0:01:54]} 20. Bg3 {[%emt 0:02:32]} Bf7 {[%emt 0:01:20]} 21. f4 {[%emt 0:04:28]} Rd8 {[%emt 0:03:21]} 22. f5 {[%emt 0:01:18]} g5 {[%emt 0:00:39]} 23. Nb5 {[%emt 0:03:41]} Rd7 {[%emt 0:01:38]} 24. Bf3 {[%emt 0:03:47]} e5 {[%emt 0:01:05]} 25. fxe6 {[%emt 0:00:31]} Bxe6 {[%emt 0:00:02]} 26. Rf1 {[%emt 0:00:56]} Kg8 {[%emt 0:00:40]} 27. Rf2 {[%emt 0:01:03]} Bf8 {[%emt 0:01:44]} 28. hxg5 {[%emt 0:00:57]} hxg5 {[%emt 0:00:05]} 29. b3 {[%emt 0:00:48]} Kg7 {[%emt 0:01:32]} 30. Rc1 {[%emt 0:00:40]} Be7 {[%emt 0:00:14]} 31. Kg2 {[%emt 0:00:46]} Bf7 {[%emt 0:00:33]} 32. Nc3 {[%emt 0:00:32]} Ba3 {[%emt 0:02:29]} 33. Rd1 {[%emt 0:00:55]} Bf8 {[%emt 0:00:09]} 34. Na4 {[%emt 0:00:40]} Ra6 {[%emt 0:00:27]} 35. Be2 {[%emt 0:00:21]} Rd8 {[%emt 0:01:50]} 36. Nc1 {[%emt 0:00:26]} Ra5 {[%emt 0:00:39]} 37. Nxb6 {[%emt 0:00:19]} Bd6 {[%emt 0:00:14]} 38. Bf3 {[%emt 0:01:22]} Bxg3 {[%emt 0:00:10]} 39. Kxg3 {[%emt 0:00:02]} Rb5 {[%emt 0:00:31]} 40. Na4 {[%emt 0:00:53]} Ra5 {[%emt 0:00:07]} 41. Nd3 {[%emt 0:11:01]} Ne7 {[%emt 0:05:44]} 42. Rdf1 {[%emt 0:14:59]} Rd6 {[%emt 0:08:29]} 43. Ndc5 {[%emt 0:03:54]} Ra7 {[%emt 0:01:36]} 44. Nc3 {[%emt 0:01:19]} Rb6 {[%emt 0:04:07]} 45. Be2 {[%emt 0:05:09]} Ng8 {[%emt 0:03:58]} 46. Bd3 {[%emt 0:03:14]} Bg6 {[%emt 0:03:16]} 47. Bxg6 {[%emt 0:01:06]} Kxg6 {[%emt 0:00:24]} 1-0

[Event "4NCL 2nd Div 2023-24"]
[Site "Daventry"]
[Date "2024.05.06"]
[Round "11.6"]
[White "Subramanian, Anusha"]
[Black "Bourached, Anthony"]
[Result "1-0"]
[ECO "E61"]
[WhiteElo "2034"]
[BlackElo "1977"]
[Annotator "NA RC"]
[PlyCount "67"]
[EventDate "2023.11.11"]
[EventType "team-tourn"]
[EventCountry "ENG"]
[SourceTitle "playchess.com"]
[Source "ChessBase"]
[SourceQuality "1"]
[TimeControl "40/6000+30:3000+30"]

1. c4 {[%emt 0:00:03]} c5 {[%emt 0:00:15]} 2. Nc3 {[%emt 0:00:06]} Nc6 {[%emt 0:02:09]} 3. Nf3 {[%emt 0:00:07]} g6 {[%emt 0:01:48]} 4. e3 {[%emt 0:00:41]} Bg7 {[%emt 0:00:19]} 5. d4 {[%emt 0:03:06]} d6 {[%emt 0:01:36]} 6. Be2 {[%emt 0:09:00]} Nf6 {[%emt 0:05:44]} 7. O-O {[%emt 0:07:06]} O-O {[%emt 0:00:12]} 8. a3 {[%emt 0:07:14]} Bf5 {[%emt 0:05:04]} 9. Nh4 {[%emt 0:07:12]} Ne4 {[%emt 1:27:53]} 10. Nxf5 {[%emt 0:12:10]} gxf5 {[%emt 0:00:00]} 11. Bd3 {[%emt 0:00:51]} Nxc3 {[%emt 0:00:00]} 12. bxc3 {[%emt 0:00:15]} e6 {[%emt 0:00:00]} 13. Rb1 {[%emt 0:04:12]} b6 {[%emt 0:00:00]} 14. f4 {[%emt 0:11:25]} Rc8 {[%emt 0:00:00]} 15. Rf3 {[%emt 0:11:13]} cxd4 {[%emt 0:00:00]} 16. cxd4 {[%emt 0:01:27]} Na5 {[%emt 0:00:00]} 17. Qe2 {[%emt 0:06:40]} d5 {[%emt 0:00:00]} 18. cxd5 {[%emt 0:02:43]} Qxd5 {[%emt 0:00:00]} 19. Rh3 {[%emt 0:05:28]} Nc4 {[%emt 0:00:00]} 20. a4 {[%emt 0:06:42]} Nd6 {[%emt 0:00:00]} 21. Ba3 {[%emt 0:00:52]} Rc7 {[%emt 0:00:00]} 22. g4 {[%emt 0:02:49]} Rfc8 {[%emt 0:06:30]} 23. g5 {[%emt 0:04:22]} Nc4 {[%emt 0:00:00]} 24. Bxc4 {[%emt 0:01:12]} Rxc4 {[%emt 0:00:00]} 25. Qh5 {[%emt 0:00:47]} h6 {[%emt 0:00:00]} 26. gxh6 {[%emt 0:00:12]} Bxd4 {[%emt 0:00:00]} 27. Rg3+ {[%emt 0:01:25]} Kh8 {[%emt 0:00:00]} 28. Qxf7 {[%emt 0:03:05]} Bxe3+ {[%emt 0:01:08]} 29. Rxe3 {[%emt 0:00:31]} Rg8+ {[%emt 0:01:49]} 30. Rg3 {[%emt 0:00:21]} Qd4+ {[%emt 0:00:02]} 31. Kg2 {[%emt 0:01:51]} Rc2+ {[%emt 0:00:20]} 32. Kh3 {[%emt 0:00:25]} Rxh2+ {[%emt 0:00:10]} 33. Kxh2 {[%emt 0:00:01]} Qf2+ {[%emt 0:00:10]} 34. Kh1 {[%emt 0:00:04]} 1-0

[Event "4NCL 2nd Div 2023-24"]
[Site "Daventry"]
[Date "2024.05.06"]
[Round "11.7"]
[White "Putar, Lara"]
[Black "Starley, Robert"]
[Result "0-1"]
[ECO "E02"]
[WhiteElo "1982"]
[BlackElo "2024"]
[Annotator "NA RC"]
[PlyCount "76"]
[EventDate "2023.11.11"]
[EventType "team-tourn"]
[EventCountry "ENG"]
[SourceTitle "playchess.com"]
[Source "ChessBase"]
[SourceQuality "1"]
[TimeControl "40/6000+30:3000+30"]

1. d4 {[%emt 0:00:03]} Nf6 {[%emt 0:00:04]} 2. c4 {[%emt 0:00:03]} e6 {[%emt 0:00:05]} 3. Nf3 {[%emt 0:00:03]} d5 {[%emt 0:00:07]} 4. g3 {[%emt 0:00:19]} Be7 {[%emt 0:00:08]} 5. Bg2 {[%emt 0:00:06]} O-O {[%emt 0:00:10]} 6. O-O {[%emt 0:00:55]} dxc4 {[%emt 0:00:13]} 7. Qa4 {[%emt 0:07:40]} Bd7 {[%emt 0:01:41]} 8. Qxc4 {[%emt 0:00:07]} Bc6 {[%emt 0:00:13]} 9. Nc3 {[%emt 0:01:36]} Nbd7 {[%emt 0:00:36]} 10. Qd3 {[%emt 0:04:18] The main line 10.Qd3 scores better than 10.Rd1.} Re8 {[%emt 0:02:21] E02: Open Catalan: 5 Qa4+.} 11. Bf4 $146 {[%emt 0:03:47]} ({Predecessor:} 11. Rd1 Nf8 12. e4 Ng6 13. a3 e5 14. Qc2 Qc8 15. b4 Bd6 16. Bg5 Qg4 17. Bxf6 gxf6 18. b5 Bd7 19. Nd5 Kg7 20. dxe5 Nxe5 21. a4 Rac8 22. Ne3 Qh5 23. Nf5+ Bxf5 {½-½ Fominyh,A (2265)-Yeap,E (2114) Penang op-A 14th 2022 (7)}) 11... Bb4 {[%emt 0:05:20]} 12. Rac1 {[%emt 0:10:01]} Nb6 {[%emt 0:02:17]} 13. Ne5 {[%emt 0:07:55]} Bxg2 {[%emt 0:00:45]} 14. Kxg2 {[%emt 0:00:23]} Bxc3 {[%emt 0:03:23]} 15. Qxc3 {[%emt 0:05:02]} Nbd5 {[%emt 0:02:07]} 16. Qf3 {[%emt 0:01:14]} Nxf4+ {[%emt 0:00:46]} 17. Qxf4 {[%emt 0:00:19]} c6 {[%emt 0:01:37]} 18. Rc5 {[%emt 0:03:45]} Qe7 {[%emt 0:02:07]} 19. Rfc1 {[%emt 0:07:57]} Red8 {[%emt 0:01:53]} 20. e3 {[%emt 0:02:31]} Nd7 {[%emt 0:04:19]} 21. Nxd7 {[%emt 0:04:30]} Rxd7 {[%emt 0:00:18]} 22. b4 {[%emt 0:04:12]} Rad8 {[%emt 0:05:01]} 23. h4 {[%emt 0:04:18]} h6 {[%emt 0:01:35]} 24. a3 {[%emt 0:03:45]} a6 {[%emt 0:00:34]} 25. Rh5 {[%emt 0:01:41]} f5 {[%emt 0:05:20]} 26. g4 {[%emt 0:07:48]} Qf7 {[%emt 0:00:38]} 27. Qf3 $17 {[%emt 0:02:35]} Qg6 {[%emt 0:06:05]} 28. Kh3 {[%emt 0:07:49]} Rd5 {[%emt 0:00:55]} 29. g5 {[%emt 0:03:58]} f4 {[%emt 0:01:33]} 30. Qg4 {[%emt 0:07:23]} fxe3 {[%emt 0:06:30]} 31. fxe3 {[%emt 0:00:28]} R8d7 {[%emt 0:01:40]} 32. Rg1 {[%emt 0:01:10]} Rf7 {[%emt 0:01:56]} 33. Rg2 {[%emt 0:01:49]} Rdf5 {[%emt 0:02:05]} 34. Kh2 {[%emt 0:01:04]} Kh8 {[%emt 0:05:18]} 35. Qe2 {[%emt 0:01:53]} Rf3 {[%emt 0:01:12]} 36. gxh6 {[%emt 0:04:03]} Qxh5 {[%emt 0:00:37]} 37. hxg7+ {[%emt 0:00:41]} Rxg7 {[%emt 0:00:31]} 38. Rxg7 {[%emt 0:00:58]} Kxg7 {[%emt 0:00:22]} 0-1

[Event "4NCL 2nd Div 2023-24"]
[Site "Daventry"]
[Date "2024.05.06"]
[Round "11.9"]
[White "Taylor, Martin R"]
[Black "Taylor, Adam A"]
[Result "1/2-1/2"]
[ECO "E32"]
[WhiteElo "2366"]
[BlackElo "2272"]
[Annotator "TA"]
[PlyCount "85"]
[EventDate "2023.11.11"]
[EventType "team-tourn"]
[EventCountry "ENG"]
[SourceTitle "playchess.com"]
[Source "ChessBase"]
[SourceQuality "1"]
[TimeControl "40/6000+30:3000+30"]

{[%evp 12,85,22,30,39,29,31,20,19,0,0,2,15,16,7,11,8,8,17,19,15,15,10,6,8,0,0,0,0,0,0,0,0,-4,38,51,39,41,79,0,0,0,0,0,0,0,0,0,0,0,15,0,0,0,0,0,0,0,0,0,0,0,0,0,0,0,0,0,0,0,0,0,0,0,0,0]} 1. d4 {[%emt 0:00:04]} Nf6 {[%emt 0:00:54]} 2. c4 {[%emt 0:00:08]} e6 {[%emt 0:00:20]} 3. Nc3 {[%emt 0:00:08]} Bb4 {[%emt 0:00:05]} 4. Qc2 {[%emt 0:00:09]} O-O {[%emt 0:00:45]} 5. a3 {[%emt 0:00:21]} Bxc3+ {[%emt 0:00:50]} 6. Qxc3 {[%emt 0:00:07]} d6 {[%emt 0:01:20]} 7. f3 {[%emt 0:01:37]} c5 {[%emt 0:02:03]} 8. dxc5 {[%emt 0:04:13]} dxc5 {[%emt 0:00:06]} 9. Bg5 {[%emt 0:11:36]} Nc6 {[%emt 0:02:24]} 10. e3 {[%emt 0:01:59]} e5 {[%emt 0:01:50]} 11. Ne2 {[%emt 0:04:02]} h6 {[%emt 0:21:42]} 12. Rd1 {[%emt 0:23:05]} Qe7 {[%emt 0:19:25]} 13. Bxf6 {[%emt 0:07:16]} Qxf6 {[%emt 0:07:03]} 14. Ng3 {[%emt 0:01:08]} Qe7 {[%emt 0:10:45]} 15. Bd3 {[%emt 0:08:23]} f5 {[%emt 0:00:32]} 16. O-O {[%emt 0:01:13]} Be6 {[%emt 0:00:46]} 17. Bc2 {[%emt 0:06:55]} Qc7 {[%emt 0:18:20]} 18. Rd2 {[%emt 0:10:43]} g6 {[%emt 0:05:16]} 19. Rfd1 {[%emt 0:05:35]} Rad8 {[%emt 0:00:12]} 20. Ne2 {[%emt 0:02:24]} Rxd2 {[%emt 0:01:53]} 21. Rxd2 {[%emt 0:00:36]} Rd8 {[%emt 0:00:05]} 22. Rxd8+ {[%emt 0:02:18]} Qxd8 {[%emt 0:00:18]} 23. Ba4 {[%emt 0:03:17]} Qd6 {[%emt 0:12:44]} 24. Bxc6 {[%emt 0:02:31]} Qxc6 $14 {[%emt 0:00:17][%mdl 4096] Endgame. KQB-KQN} 25. b3 {[%emt 0:06:50]} ({White should try} 25. Qxe5 $16 {Hoping for b3.} Bxc4 26. Nf4) 25... Qd6 $11 {[%emt 0:00:52] The position is equal.} 26. Nc1 {[%emt 0:01:49]} e4 {[%emt 0:01:23]} 27. fxe4 {[%emt 0:02:08]} fxe4 {[%emt 0:00:18]} 28. Qf6 {[%emt 0:01:05]} Qd1+ $1 {[%emt 0:00:41]} 29. Kf2 {[%emt 0:00:40]} Bf7 {[%emt 0:00:07]} 30. Qc3 {[%emt 0:01:06]} a6 {[%emt 0:01:22]} 31. a4 {[%emt 0:00:39]} h5 {[%emt 0:00:25]} 32. Ne2 {[%emt 0:00:44]} h4 {[%emt 0:00:13] Prevents Ng3.} 33. h3 {[%emt 0:01:11]} Qd6 {[%emt 0:00:18]} 34. Ke1 {[%emt 0:00:40]} g5 {[%emt 0:00:19]} 35. Qd2 {[%emt 0:00:18]} Qxd2+ {[%emt 0:01:31]} 36. Kxd2 {[%emt 0:00:01] KB-KN} Bg6 {[%emt 0:00:01]} 37. a5 {[%emt 0:01:09] [#] Black must now prevent Nc3.} Kf7 {[%emt 0:00:03]} 38. Nc3 {[%emt 0:00:34] Strongly threatening Na4.} Ke6 {[%emt 0:00:11]} 39. Nd1 {[%emt 0:00:41]} Kd6 {[%emt 0:01:28]} 40. Kc3 {[%emt 0:00:18]} b6 {[%emt 0:00:50]} 41. axb6 {[%emt 0:50:30]} Kc6 {[%emt 0:50:03]} 42. Kb2 {[%emt 0:00:00]} Kxb6 {[%emt 0:00:00]} 43. Nf2 {[%emt 0:00:00] Weighted Error Value: White=0.04 (flawless) /Black=0.04 (flawless) .  Mistake:       	White=1     	---        Inaccurate:     	---       	Black=2      OK:         	White=18    	Black=21     Best:        	White=1     	Black=1      Strong:       	---       	Black=1} 1/2-1/2

[Event "4NCL 2nd Div 2023-24"]
[Site "Daventry"]
[Date "2024.05.06"]
[Round "11.10"]
[White "Wilks, Simon"]
[Black "Merry, Alan B"]
[Result "1/2-1/2"]
[ECO "B19"]
[WhiteElo "2031"]
[BlackElo "2439"]
[Annotator "TA"]
[PlyCount "144"]
[EventDate "2023.11.11"]
[EventType "team-tourn"]
[EventCountry "ENG"]
[SourceTitle "playchess.com"]
[Source "ChessBase"]
[SourceQuality "1"]
[TimeControl "40/6000+30:3000+30"]

{[%evp 43,144,30,65,83,235,49,111,34,45,40,87,17,58,56,102,104,122,75,95,99,99,104,109,44,60,24,323,14,22,30,42,0,0,0,0,0,0,0,0,0,0,-12,-10,-9,0,0,0,0,0,0,0,0,-3,-2,-2,-3,-2,0,-1,-1,0,0,0,0,0,0,0,0,0,0,0,0,0,0,0,0,0,0,0,0,0,0,0,0,0,0,0,0,0,0,0,0,0,0,0,0,0,0,0,0,0,0,0]} 1. e4 {[%emt 0:03:46]} c6 {[%emt 0:00:02]} 2. d4 {[%emt 0:00:36]} d5 {[%emt 0:00:04]} 3. Nc3 {[%emt 0:00:17]} dxe4 {[%emt 0:00:04]} 4. Nxe4 {[%emt 0:00:03]} Bf5 {[%emt 0:00:05]} 5. Ng3 {[%emt 0:00:06]} Bg6 {[%emt 0:00:02]} 6. h4 {[%emt 0:00:35]} h6 {[%emt 0:00:04]} 7. Nf3 {[%emt 0:00:06]} Nd7 {[%emt 0:00:06]} 8. h5 {[%emt 0:00:35]} Bh7 {[%emt 0:00:04]} 9. Bd3 {[%emt 0:00:05]} Ngf6 {[%emt 0:00:03]} 10. Bxh7 {[%emt 0:13:54]} Nxh7 {[%emt 0:00:11]} 11. Qd3 {[%emt 0:08:40] B19: Classical Caro-Kann: 4...Bf5 main line.} e6 {[%emt 0:00:55]} 12. Bd2 {[%emt 0:01:27]} Ndf6 {[%emt 1:44:50]} 13. O-O-O {[%emt 0:03:28]} Be7 {[%emt 0:00:00]} 14. Kb1 {[%emt 0:02:40]} O-O {[%emt 0:00:00]} 15. Ne4 {[%emt 0:01:22]} Nxe4 {[%emt 0:00:00]} 16. Qxe4 {[%emt 0:00:05]} Qd5 {[%emt 0:00:00]} 17. Qe2 {[%emt 0:04:12]} c5 {[%emt 0:00:00]} 18. dxc5 $146 {[%emt 0:18:51]} ({Predecessor:} 18. Be3 c4 19. Ne5 Rfc8 20. g4 a5 21. f4 a4 22. a3 c3 23. g5 Ra6 24. gxh6 {½-½ Martin,S (2050)-Misericordia,A (2316) OP-2021-0-05217}) 18... Qxc5 {[%emt 0:00:00]} 19. Ne5 {[%emt 0:03:28]} Rfd8 {[%emt 0:00:00]} 20. f4 {[%emt 0:05:56]} Nf6 {[%emt 0:00:00]} 21. g4 {[%emt 0:03:15]} Rac8 {[%emt 0:00:00]} 22. Bc1 {[%emt 0:05:55]} Qb4 {[%emt 0:00:00]} 23. c4 {[%emt 0:07:53]} Nh7 $2 {[%emt 0:00:00]} (23... Rxd1 $16 24. Rxd1 Bd6) 24. Rhg1 $2 {[%emt 0:15:36]} (24. g5 $18) 24... Qc5 {[%emt 0:00:00] [#]} (24... Rxd1 $14 25. Rxd1 Rd8) 25. Be3 {[%emt 0:03:56]} (25. Qe4 $1 $16) 25... Qc7 $14 {[%emt 0:00:00]} 26. b3 {[%emt 0:01:27]} ({Inferior is} 26. Bxa7 b6 27. g5 hxg5 $17 (27... Qxa7 28. gxh6 Rxd1+ 29. Rxd1 $15)) 26... Bc5 {[%emt 0:00:00]} (26... Rxd1+ $14 {is more appropriate.} 27. Rxd1 Nf8) 27. Qf2 {[%emt 0:01:27]} ({White should try} 27. Bxc5 $16 Qxc5 28. Qf3) 27... b6 {[%emt 0:00:00]} 28. Bxc5 {[%emt 0:00:59]} bxc5 {[%emt 0:00:00]} (28... Qxc5 $14 {is superior.} 29. Rxd8+ Rxd8 30. Qxc5 bxc5) 29. Qe3 $16 {[%emt 0:00:56]} f6 {[%emt 0:00:00]} 30. Nd3 {[%emt 0:01:13]} (30. Ng6 $142 Kf7 31. Qf3) 30... Rd6 {[%emt 0:00:00]} 31. Nf2 {[%emt 0:01:00]} Rcd8 {[%emt 0:00:00]} 32. Rxd6 {[%emt 0:00:32]} Rxd6 {[%emt 0:00:00]} 33. Ne4 {[%emt 0:01:20]} (33. Nd3 $16) 33... Rd4 $14 {[%emt 0:00:00]} 34. g5 {[%emt 0:00:47]} Qc6 $2 {[%emt 0:03:47][%mdl 8192]} (34... hxg5 $1 $11 {and Black has nothing to worry.} 35. fxg5 f5) 35. Re1 $2 {[%emt 0:00:54]} (35. Nxf6+ $18 Nxf6 (35... gxf6 $2 {is the wrong capture.} 36. gxh6+ Kf8 37. Qg3 $18) 36. gxf6) 35... hxg5 $11 {[%emt 0:01:43]} 36. fxg5 {[%emt 0:00:21]} f5 {[%emt 0:00:59]} 37. Nxc5 {[%emt 0:00:38]} Qxc5 {[%emt 0:01:19]} 38. Qxe6+ {[%emt 0:00:07]} Kh8 {[%emt 0:00:07]} 39. h6 {[%emt 0:00:51]} Re4 {[%emt 0:03:49]} ({Stronger than} 39... Nxg5 40. Qg6) 40. hxg7+ {[%emt 0:00:27]} Kxg7 {[%emt 0:00:05]} 41. Qh6+ {[%emt 0:50:43]} Kg8 {[%emt 0:51:50]} 42. Rh1 {[%emt 0:00:00]} Qe7 {[%emt 0:00:00]} 43. Qg6+ {[%emt 0:00:00]} Kh8 {[%emt 0:00:00]} 44. Qxf5 {[%emt 0:00:00]} Re5 {[%emt 0:00:00]} 45. Qf6+ {[%emt 0:00:00]} Qxf6 {[%emt 0:00:00]} 46. gxf6 {[%emt 0:00:00]} Rf5 {[%emt 0:00:00]} 47. Re1 {[%emt 0:00:00]} Nxf6 {[%emt 0:00:00]} 48. Re7 {[%emt 0:00:00]} a5 {[%emt 0:00:00]} 49. Kb2 {[%emt 0:00:00]} Kg8 {[%emt 0:00:00]} 50. Rb7 {[%emt 0:00:00]} Kf8 {[%emt 0:00:00]} 51. Ka3 {[%emt 0:01:12]} Ne4 {[%emt 0:00:00]} 52. Rb5 {[%emt 0:01:29]} Rf2 {[%emt 0:00:00]} 53. Rxa5 {[%emt 0:00:31]} Nc3 {[%emt 0:00:00]} 54. Kb4 {[%emt 0:00:23]} Nxa2+ {[%emt 0:00:00]} 55. Kb5 {[%emt 0:00:48]} Ke7 {[%emt 0:00:00]} 56. Ra7+ {[%emt 0:01:21]} Kd8 {[%emt 0:00:00]} 57. c5 {[%emt 0:00:58]} Rb2 {[%emt 0:00:00]} 58. Kc4 {[%emt 0:01:12]} Kc8 {[%emt 0:00:00]} 59. Rh7 {[%emt 0:00:53]} Kb8 {[%emt 0:00:21]} 60. Rg7 {[%emt 0:00:36]} Rh2 {[%emt 0:02:33]} 61. Kb5 {[%emt 0:00:34]} Nc3+ {[%emt 0:04:22]} 62. Kc4 {[%emt 0:00:24]} Ne4 {[%emt 0:01:20]} 63. b4 {[%emt 0:00:33]} Nf6 {[%emt 0:00:40]} 64. Kb5 {[%emt 0:00:34]} Rb2 {[%emt 0:01:38]} 65. c6 {[%emt 0:00:29]} Rc2 {[%emt 0:01:09]} 66. Rf7 {[%emt 0:00:31]} Nd5 {[%emt 0:00:25]} 67. Rd7 {[%emt 0:00:26]} Nc7+ {[%emt 0:00:43]} 68. Kb6 $1 {[%emt 0:00:09]} Na8+ {[%emt 0:00:10]} 69. Kb5 {[%emt 0:00:06]} Kc8 {[%emt 0:00:33]} 70. Rh7 $1 {[%emt 0:01:11]} Nc7+ {[%emt 0:00:03]} 71. Kb6 {[%emt 0:00:26]} Nd5+ {[%emt 0:00:08]} 72. Kb5 {[%emt 0:00:32]} Nc7+ {[%emt 0:02:04]} 1/2-1/2